[Event "Turkish Cup 2024"]
[Site "Denizli"]
[Date "2024.08.05"]
[Round "10"]
[White "Cevizci, Yusuf Baran"]
[Black "Akkara, Omer"]
[Result "1-0"]
[ECO "B22"]
[WhiteElo "2102"]
[BlackElo "1998"]
[Annotator "NA RC"]
[PlyCount "103"]
[EventDate "2024.08.01"]
[EventType "swiss"]
[EventCountry "TUR"]
[SourceTitle "playchess.com"]
[Source "ChessBase"]
[SourceQuality "1"]
[TimeControl "5400+30"]

1. e4 {[%emt 0:01:00]} c5 {[%emt 0:01:00]} 2. c3 {[%emt 0:00:30]} Nf6 {[%emt 0:00:30]} 3. e5 {[%emt 0:00:30]} Nd5 {[%emt 0:00:30]} 4. Nf3 {[%emt 0:00:00]} Nc6 {[%emt 0:00:00]} 5. d4 {[%emt 0:00:00]} cxd4 {[%emt 0:00:00]} 6. cxd4 {[%emt 0:00:00]} d6 {[%emt 0:00:30]} 7. Bc4 {[%emt 0:00:00]} dxe5 {[%emt 0:00:30]} 8. Bxd5 {[%emt 0:00:30]} Qxd5 {[%emt 0:00:30]} 9. Nc3 {[%emt 0:00:00]} Qd6 {[%emt 0:00:00]} 10. d5 {[%emt 0:00:00]} Nd4 {[%emt 0:00:00]} 11. Nxd4 {[%emt 0:00:00]} exd4 {[%emt 0:00:00]} 12. Qxd4 {[%emt 0:00:00]} e5 {[%emt 0:00:00]} 13. Qd3 {[%emt 0:00:00]} Bd7 {[%emt 0:01:30]} 14. O-O {[%emt 0:00:00]} Qg6 {[%emt 0:06:30]} 15. Qxg6 {[%emt 0:09:30]} hxg6 {[%emt 0:00:30]} 16. Re1 {[%emt 0:00:30]} O-O-O {[%emt 0:10:30]} 17. Be3 {[%emt 0:00:00]} b6 {[%emt 0:02:30]} 18. Rac1 {[%emt 0:03:00]} Kb7 {[%emt 0:00:30]} 19. a3 {[%emt 0:03:30]} f5 {[%emt 0:05:30]} 20. Bg5 {[%emt 0:04:30]} Re8 {[%emt 0:02:30]} 21. h4 {[%emt 0:14:30]} Bc5 {[%emt 0:01:30]} 22. b4 {[%emt 0:00:30]} Bd6 {[%emt 0:02:30]} 23. Nd1 {[%emt 0:02:30]} e4 {[%emt 0:11:30]} 24. Nb2 {[%emt 0:00:00]} b5 {[%emt 0:01:30]} 25. Nd1 {[%emt 0:05:00]} Rc8 {[%emt 0:03:30]} 26. Nc3 {[%emt 0:00:30]} Be5 {[%emt 0:01:30]} 27. Ne2 {[%emt 0:00:30]} Bb2 {[%emt 0:12:30]} 28. Rb1 {[%emt 0:00:30]} Rc2 {[%emt 0:00:30]} 29. g3 {[%emt 0:05:30]} Bxa3 {[%emt 0:07:30]} 30. Nf4 {[%emt 0:04:30]} a5 {[%emt 0:10:19]} 31. Nxg6 {[%emt 0:00:30]} Re8 {[%emt 0:00:10]} 32. bxa5 {[%emt 0:00:00]} Ka6 {[%emt 0:00:33]} 33. Be3 {[%emt 0:03:00]} Kxa5 {[%emt 0:00:31]} 34. Red1 {[%emt 0:01:30]} b4 {[%emt 0:05:12]} 35. d6 {[%emt 0:00:30]} Rb8 {[%emt 0:03:23]} 36. Ne5 {[%emt 0:01:30]} Rb7 {[%emt 0:00:04]} 37. Bd2 {[%emt 0:09:30]} Ka4 {[%emt 0:01:14]} 38. Nxd7 {[%emt 0:01:30]} Rxd7 {[%emt 0:03:28]} 39. Bxb4 {[%emt 0:00:00]} Bb2 {[%emt 0:02:29]} 40. Bc5 {[%emt 0:01:00]} Kb3 {[%emt 0:00:29]} 41. Bd4 {[%emt 0:00:30]} Rxd6 {[%emt 0:01:14]} 42. Bxb2 {[%emt 0:00:00]} Rxd1+ {[%emt 0:00:42]} 43. Rxd1 {[%emt 0:00:00]} Kxb2 {[%emt 0:00:11]} 44. Rd5 {[%emt 0:00:30]} Rc1+ {[%emt 0:02:57]} 45. Kg2 {[%emt 0:00:30]} Rc2 {[%emt 0:00:30]} 46. Kf1 {[%emt 0:00:30]} Rc1+ {[%emt 0:00:39]} 47. Ke2 {[%emt 0:00:00]} Rc2+ {[%emt 0:01:40]} 48. Rd2 {[%emt 0:04:00]} g6 {[%emt 0:00:08]} 49. Rxc2+ {[%emt 0:00:30]} Kxc2 {[%emt 0:00:30]} 50. f3 {[%emt 0:00:30]} exf3+ {[%emt 0:00:36]} 51. Kxf3 {[%emt 0:00:00]} Kd3 {[%emt 0:01:08]} 52. g4 {[%emt 0:00:00]} 1-0

[Event "Turkish Cup 2024"]
[Site "Denizli"]
[Date "2024.08.05"]
[Round "10"]
[White "Kavri, Yusuf Eren"]
[Black "Uysal, Ugur"]
[Result "0-1"]
[ECO "E71"]
[WhiteElo "2090"]
[BlackElo "2114"]
[Annotator "NA RC"]
[PlyCount "56"]
[EventDate "2024.08.01"]
[EventType "swiss"]
[EventCountry "TUR"]
[SourceTitle "playchess.com"]
[Source "ChessBase"]
[SourceQuality "1"]
[TimeControl "5400+30"]

1. d4 {[%emt 0:01:00]} Nf6 2. c4 {[%emt 0:00:30]} g6 3. Nc3 {[%emt 0:00:00]} Bg7 {[%emt 0:01:00]} 4. e4 {[%emt 0:00:00]} d6 {[%emt 0:00:30]} 5. h3 {[%emt 0:00:00]} Nbd7 {[%emt 0:00:30]} 6. Be3 {[%emt 0:01:00]} e5 {[%emt 0:00:30]} 7. d5 {[%emt 0:00:00]} Nc5 {[%emt 0:01:30]} 8. Qc2 {[%emt 0:00:00]} O-O {[%emt 0:01:30]} 9. Nge2 {[%emt 0:10:30]} c6 {[%emt 0:05:30]} 10. dxc6 {[%emt 0:08:30]} bxc6 {[%emt 0:00:30]} 11. O-O-O {[%emt 0:00:30]} Qc7 {[%emt 0:00:30]} 12. g4 {[%emt 0:00:30]} a5 {[%emt 0:01:30]} 13. Ng3 {[%emt 0:02:30]} Ne6 {[%emt 0:04:30]} 14. f3 {[%emt 0:06:30]} Rb8 {[%emt 0:11:30]} 15. h4 {[%emt 0:04:30]} Nd4 {[%emt 0:05:30]} 16. Qf2 {[%emt 0:29:30]} Bxg4 {[%emt 0:23:30]} 17. fxg4 {[%emt 0:10:30]} Nxg4 {[%emt 0:00:30]} 18. Qd2 {[%emt 0:00:00]} Nxe3 {[%emt 0:00:30]} 19. Qxe3 {[%emt 0:00:00]} Qb6 {[%emt 0:00:30]} 20. Na4 {[%emt 0:02:30]} Qb4 {[%emt 0:00:30]} 21. Bd3 {[%emt 0:06:05]} Qxa4 {[%emt 0:00:30]} 22. Rh2 {[%emt 0:01:58]} Qxa2 {[%emt 0:00:30]} 23. h5 {[%emt 0:00:36]} Nb3+ {[%emt 0:01:30]} 24. Kc2 {[%emt 0:00:30]} Na1+ {[%emt 0:00:30]} 25. Kc1 {[%emt 0:00:00]} Nb3+ {[%emt 0:01:30]} 26. Kc2 {[%emt 0:00:25]} Nd4+ {[%emt 0:06:30]} 27. Kc1 {[%emt 0:00:27]} Rb3 {[%emt 0:00:30]} 28. Nf5 {[%emt 0:04:37]} Nxf5 {[%emt 0:01:30]} 0-1

[Event "Turkish Cup 2024"]
[Site "Denizli"]
[Date "2024.08.05"]
[Round "10"]
[White "Baylav, Can"]
[Black "Madsman, Alp"]
[Result "1-0"]
[ECO "C01"]
[WhiteElo "2086"]
[BlackElo "1748"]
[Annotator "NA RC"]
[PlyCount "61"]
[EventDate "2024.08.01"]
[EventType "swiss"]
[EventCountry "TUR"]
[SourceTitle "playchess.com"]
[Source "ChessBase"]
[SourceQuality "1"]
[TimeControl "5400+30"]

1. c4 {[%emt 0:06:00]} e6 {[%emt 0:01:00]} 2. e4 {[%emt 0:00:30]} d5 {[%emt 0:02:30]} 3. exd5 {[%emt 0:00:30]} exd5 {[%emt 0:00:30]} 4. d4 {[%emt 0:00:00]} Nf6 {[%emt 0:01:30]} 5. Nc3 {[%emt 0:00:00]} Be7 {[%emt 0:01:30]} 6. Bd3 {[%emt 0:05:30]} dxc4 {[%emt 0:02:30]} 7. Bxc4 {[%emt 0:00:30]} O-O {[%emt 0:00:30]} 8. Nge2 {[%emt 0:00:30]} Bf5 {[%emt 0:05:30]} 9. O-O {[%emt 0:00:00]} Nbd7 {[%emt 0:02:30]} 10. Ng3 {[%emt 0:01:00]} Bg6 {[%emt 0:00:30]} 11. h4 {[%emt 0:00:00]} h6 {[%emt 0:03:30]} 12. h5 {[%emt 0:02:00]} Bh7 {[%emt 0:00:30]} 13. Bf4 {[%emt 0:02:30]} Nb6 {[%emt 0:03:30]} 14. Bb3 {[%emt 0:00:30]} c6 {[%emt 0:00:30]} 15. Re1 {[%emt 0:00:30]} Re8 {[%emt 0:04:30]} 16. Be5 {[%emt 0:02:30]} Qd7 {[%emt 0:07:30]} 17. Nce4 {[%emt 0:03:30]} Nxe4 {[%emt 0:01:30]} 18. Nxe4 {[%emt 0:00:00]} Bxe4 {[%emt 0:07:30]} 19. Rxe4 {[%emt 0:04:00]} Bf6 {[%emt 0:03:30]} 20. Rf4 {[%emt 0:00:30]} Nd5 {[%emt 0:16:30]} 21. Bxd5 {[%emt 0:00:30]} Qxd5 {[%emt 0:00:30]} 22. Rxf6 {[%emt 0:00:00]} Rxe5 {[%emt 0:11:30]} 23. dxe5 {[%emt 0:00:00]} gxf6 {[%emt 0:00:30]} 24. exf6 {[%emt 0:00:30]} Qf5 {[%emt 0:02:30]} 25. Qd6 {[%emt 0:01:30]} Qxh5 {[%emt 0:00:50]} 26. Re1 {[%emt 0:00:30]} Qd5 {[%emt 0:00:10]} 27. Qc7 {[%emt 0:04:30]} b5 {[%emt 0:03:28]} 28. Re5 {[%emt 0:05:30]} Qc4 {[%emt 0:03:43]} 29. Re8+ {[%emt 0:00:30]} Rxe8 {[%emt 0:01:42]} 30. Qg3+ {[%emt 0:00:30]} Kf8 {[%emt 0:00:30]} 31. Qg7# {[%emt 0:00:00]} 1-0

[Event "Turkish Cup 2024"]
[Site "Denizli"]
[Date "2024.08.05"]
[Round "10"]
[White "Yilmaz, Kerem Tuna"]
[Black "Avsar, Gediz"]
[Result "1-0"]
[ECO "B34"]
[WhiteElo "2025"]
[BlackElo "1880"]
[Annotator "NA RC"]
[PlyCount "109"]
[EventDate "2024.08.01"]
[EventType "swiss"]
[EventCountry "TUR"]
[SourceTitle "playchess.com"]
[Source "ChessBase"]
[SourceQuality "1"]
[TimeControl "5400+30"]

1. e4 {[%emt 0:01:00]} c5 {[%emt 0:01:00]} 2. Nf3 {[%emt 0:02:30]} g6 {[%emt 0:00:00]} 3. d4 {[%emt 0:04:30]} cxd4 {[%emt 0:00:00]} 4. Nxd4 {[%emt 0:00:00]} Nc6 {[%emt 0:00:30]} 5. Bc4 {[%emt 0:04:00]} Bg7 {[%emt 0:04:30]} 6. Ne2 {[%emt 0:03:30]} Nf6 {[%emt 0:02:30]} 7. Nbc3 {[%emt 0:00:00]} d6 {[%emt 0:00:30]} 8. Bb3 {[%emt 0:01:00]} Bd7 {[%emt 0:05:30]} 9. Bg5 {[%emt 0:06:30]} Na5 {[%emt 0:09:30]} 10. Qd2 {[%emt 0:05:30]} Nxb3 {[%emt 0:01:30]} 11. axb3 {[%emt 0:00:30]} Bc6 {[%emt 0:02:30]} 12. f3 {[%emt 0:03:30]} O-O {[%emt 0:12:30]} 13. Bh6 {[%emt 0:08:30]} Qc7 {[%emt 0:11:30]} 14. h4 {[%emt 0:11:30]} Rfd8 {[%emt 0:05:30]} 15. Bxg7 {[%emt 0:04:30]} Kxg7 {[%emt 0:00:30]} 16. h5 {[%emt 0:00:00]} e5 {[%emt 0:05:30]} 17. Ng3 {[%emt 0:08:00]} Ng8 {[%emt 0:14:30]} 18. Qg5 {[%emt 0:06:30]} f6 {[%emt 0:00:30]} 19. hxg6 {[%emt 0:01:30]} fxg5 {[%emt 0:00:30]} 20. Rxh7+ {[%emt 0:00:30]} Kxg6 {[%emt 0:00:30]} 21. Rxc7 {[%emt 0:00:00]} Nh6 {[%emt 0:05:06]} 22. O-O-O {[%emt 0:04:00]} Nf7 {[%emt 0:01:05]} 23. Nf5 {[%emt 0:01:30]} Kf6 {[%emt 0:01:00]} 24. Ne7 {[%emt 0:04:13]} Rd7 {[%emt 0:00:08]} 25. Nxc6 {[%emt 0:02:45]} Rxc7 {[%emt 0:00:30]} 26. Nd5+ {[%emt 0:00:00]} Kg7 {[%emt 0:00:26]} 27. Nxc7 {[%emt 0:00:21]} Rc8 {[%emt 0:00:00]} 28. Ne7 {[%emt 0:04:23]} Rxc7 {[%emt 0:00:17]} 29. Nf5+ {[%emt 0:00:01]} Kf6 {[%emt 0:00:23]} 30. Nxd6 {[%emt 0:00:10]} Ke6 {[%emt 0:00:30]} 31. Nxf7 {[%emt 0:04:51]} Rxf7 {[%emt 0:00:09]} 32. Kd2 {[%emt 0:00:01]} g4 {[%emt 0:00:54]} 33. Ke3 {[%emt 0:01:42]} gxf3 {[%emt 0:00:10]} 34. gxf3 {[%emt 0:00:14]} Rh7 {[%emt 0:00:06]} 35. Rd2 {[%emt 0:00:19]} Rh1 {[%emt 0:00:17]} 36. c3 {[%emt 0:00:25]} Re1+ {[%emt 0:00:59]} 37. Re2 {[%emt 0:00:53]} Rh1 {[%emt 0:00:08]} 38. Rf2 {[%emt 0:00:01]} Re1+ {[%emt 0:00:42]} 39. Kd3 {[%emt 0:00:17]} b6 {[%emt 0:00:59]} 40. Rh2 {[%emt 0:03:49]} Rf1 {[%emt 0:00:22]} 41. Rh6+ {[%emt 0:00:00]} Kd7 {[%emt 0:00:24]} 42. Kc4 {[%emt 0:01:39]} Rxf3 {[%emt 0:00:31]} 43. Kd5 {[%emt 0:00:39]} Rd3+ {[%emt 0:00:30]} 44. Kxe5 {[%emt 0:00:00]} Rd2 {[%emt 0:00:14]} 45. Rh7+ {[%emt 0:00:09]} Kc6 {[%emt 0:00:00]} 46. Rxa7 {[%emt 0:00:19]} Rxb2 {[%emt 0:00:06]} 47. b4 {[%emt 0:00:00]} b5 {[%emt 0:02:13]} 48. Ra6+ {[%emt 0:00:11]} Kb7 {[%emt 0:00:10]} 49. Rh6 {[%emt 0:00:20]} Rd2 {[%emt 0:00:00]} 50. Rd6 {[%emt 0:00:31]} Rc2 {[%emt 0:00:20]} 51. Kd4 {[%emt 0:00:47]} Kc7 {[%emt 0:00:34]} 52. e5 {[%emt 0:00:28]} Re2 {[%emt 0:00:45]} 53. Rd5 {[%emt 0:00:34]} Kc6 {[%emt 0:00:07]} 54. Rc5+ {[%emt 0:00:18]} Kb6 {[%emt 0:00:30]} 55. Kd5 {[%emt 0:00:00]} 1-0

[Event "Turkish Cup 2024"]
[Site "Denizli"]
[Date "2024.08.05"]
[Round "10"]
[White "Gungor, Cihan Akif"]
[Black "Ugur, Sefa"]
[Result "1-0"]
[ECO "B02"]
[WhiteElo "2024"]
[BlackElo "1785"]
[Annotator "NA RC"]
[PlyCount "99"]
[EventDate "2024.08.01"]
[EventType "swiss"]
[EventCountry "TUR"]
[SourceTitle "playchess.com"]
[Source "ChessBase"]
[SourceQuality "1"]
[TimeControl "5400+30"]

1. e4 {[%emt 0:01:00]} Nf6 {[%emt 0:03:00]} 2. d3 {[%emt 0:00:00]} d5 {[%emt 0:00:30]} 3. Nd2 {[%emt 0:00:00]} Nc6 {[%emt 0:02:30]} 4. Ngf3 {[%emt 0:00:00]} Bg4 {[%emt 0:03:30]} 5. Be2 {[%emt 0:02:00]} dxe4 {[%emt 0:00:30]} 6. dxe4 {[%emt 0:00:00]} e5 {[%emt 0:01:30]} 7. c3 {[%emt 0:00:00]} Be7 {[%emt 0:05:30]} 8. O-O {[%emt 0:00:30]} O-O {[%emt 0:01:30]} 9. Qc2 {[%emt 0:00:30]} Re8 {[%emt 0:04:30]} 10. b4 {[%emt 0:00:30]} a6 {[%emt 0:02:30]} 11. a4 {[%emt 0:04:30]} Bf8 {[%emt 0:04:30]} 12. Bb2 {[%emt 0:00:30]} Ne7 {[%emt 0:02:30]} 13. Bc4 {[%emt 0:02:30]} Nc8 {[%emt 0:12:30]} 14. Rfe1 {[%emt 0:02:30]} Nd6 {[%emt 0:00:30]} 15. Ba2 {[%emt 0:01:30]} b5 {[%emt 0:03:30]} 16. c4 {[%emt 0:02:30]} Bxf3 {[%emt 0:07:30]} 17. Nxf3 {[%emt 0:01:30]} Nxc4 {[%emt 0:01:30]} 18. Bxc4 {[%emt 0:00:30]} bxc4 {[%emt 0:00:00]} 19. Qxc4 {[%emt 0:58:30]} Bd6 {[%emt 0:02:00]} 20. Reb1 {[%emt 0:02:46]} Qd7 {[%emt 0:04:30]} 21. Bc3 {[%emt 0:00:15]} Qg4 {[%emt 0:00:30]} 22. Nd2 {[%emt 0:00:30]} Nh5 {[%emt 0:02:30]} 23. Nf1 {[%emt 0:00:45]} Nf4 {[%emt 0:03:30]} 24. Ne3 {[%emt 0:00:02]} Qh5 {[%emt 0:01:30]} 25. f3 {[%emt 0:01:00]} Re6 {[%emt 0:02:30]} 26. b5 {[%emt 0:02:19]} Rg6 {[%emt 0:02:30]} 27. Ng4 {[%emt 0:00:02]} Rxg4 {[%emt 0:03:30]} 28. fxg4 {[%emt 0:00:05]} Qxg4 {[%emt 0:00:30]} 29. Ra2 {[%emt 0:01:42]} axb5 {[%emt 0:00:30]} 30. Qxb5 {[%emt 0:00:30]} Rd8 {[%emt 0:03:30]} 31. Kh1 {[%emt 0:04:54]} h5 {[%emt 0:00:30]} 32. Qf1 {[%emt 0:00:57]} h4 {[%emt 0:04:02]} 33. Qf3 {[%emt 0:01:25]} Qe6 {[%emt 0:00:31]} 34. Rd2 {[%emt 0:00:04]} Qe8 {[%emt 0:02:03]} 35. a5 {[%emt 0:00:21]} Ra8 {[%emt 0:00:39]} 36. Rdb2 {[%emt 0:00:44]} c5 {[%emt 0:02:44]} 37. g3 {[%emt 0:01:50]} hxg3 {[%emt 0:01:07]} 38. hxg3 {[%emt 0:00:05]} Ng6 {[%emt 0:00:27]} 39. Qd3 {[%emt 0:02:34]} Qe6 {[%emt 0:00:56]} 40. Qd5 {[%emt 0:00:00]} Qxd5 {[%emt 0:03:51]} 41. exd5 {[%emt 0:00:24]} Ne7 {[%emt 0:00:30]} 42. Rd1 {[%emt 0:00:30]} Nf5 {[%emt 0:00:28]} 43. Be1 {[%emt 0:01:02]} Ne3 {[%emt 0:00:53]} 44. Rdb1 {[%emt 0:01:18]} f5 {[%emt 0:01:36]} 45. Rb6 {[%emt 0:01:05]} Nc4 {[%emt 0:01:27]} 46. Rc6 {[%emt 0:00:04]} Bf8 {[%emt 0:02:39]} 47. a6 {[%emt 0:00:48]} Na3 {[%emt 0:00:31]} 48. Rd1 {[%emt 0:00:45]} Nc2 {[%emt 0:00:16]} 49. d6 {[%emt 0:01:06]} Nd4 {[%emt 0:00:08]} 50. Rxd4 {[%emt 0:00:32]} 1-0

[Event "Turkish Cup 2024"]
[Site "Denizli"]
[Date "2024.08.05"]
[Round "10"]
[White "Seker, Gokhan"]
[Black "Kolat, Ata"]
[Result "1-0"]
[ECO "E00"]
[WhiteElo "2009"]
[BlackElo "1908"]
[Annotator "NA RC"]
[PlyCount "49"]
[EventDate "2024.08.01"]
[EventType "swiss"]
[EventCountry "TUR"]
[SourceTitle "playchess.com"]
[Source "ChessBase"]
[SourceQuality "1"]
[TimeControl "5400+30"]

1. d4 {[%emt 0:01:00]} Nf6 {[%emt 0:01:00]} 2. c4 {[%emt 0:01:30]} e6 {[%emt 0:00:00]} 3. Bg5 {[%emt 0:00:00]} Bb4+ {[%emt 0:02:00]} 4. Nd2 {[%emt 0:00:00]} h6 {[%emt 0:03:30]} 5. Bxf6 {[%emt 0:00:30]} Qxf6 {[%emt 0:00:00]} 6. a3 {[%emt 0:00:00]} Be7 {[%emt 0:04:00]} 7. Ngf3 {[%emt 0:00:00]} O-O {[%emt 0:05:30]} 8. e3 {[%emt 0:02:30]} c5 {[%emt 0:09:30]} 9. Ne4 {[%emt 0:00:30]} Qf5 {[%emt 0:00:30]} 10. Bd3 {[%emt 0:00:30]} cxd4 {[%emt 0:00:30]} 11. Nxd4 {[%emt 0:00:30]} Qa5+ {[%emt 0:13:30]} 12. b4 {[%emt 0:07:30]} Qd8 {[%emt 0:01:30]} 13. g3 {[%emt 0:03:30]} Nc6 {[%emt 0:08:30]} 14. Nxc6 {[%emt 0:00:30]} dxc6 {[%emt 0:00:30]} 15. Qb3 {[%emt 0:00:30]} a5 {[%emt 0:00:30]} 16. Rd1 {[%emt 0:00:30]} axb4 {[%emt 0:00:30]} 17. axb4 {[%emt 0:00:30]} Qc7 {[%emt 0:14:30]} 18. c5 {[%emt 0:44:30]} Rd8 {[%emt 0:00:30]} 19. O-O {[%emt 0:00:30]} Kh8 {[%emt 0:14:30]} 20. Bb1 {[%emt 0:10:30]} b6 {[%emt 0:08:31]} 21. Rxd8+ {[%emt 0:00:30]} Bxd8 {[%emt 0:01:24]} 22. Qc2 {[%emt 0:05:38]} g6 {[%emt 0:00:30]} 23. Qc3+ {[%emt 0:00:30]} Kg8 {[%emt 0:03:58]} 24. Nd6 {[%emt 0:01:05]} bxc5 {[%emt 0:00:35]} 25. Ne8 {[%emt 0:00:29]} 1-0

[Event "Turkish Cup 2024"]
[Site "Denizli"]
[Date "2024.08.05"]
[Round "10"]
[White "Ilgaz, Yusuf Kerem"]
[Black "Sevig, Mert Can"]
[Result "1/2-1/2"]
[ECO "B36"]
[WhiteElo "2006"]
[BlackElo "1818"]
[Annotator "NA RC"]
[PlyCount "150"]
[EventDate "2024.08.01"]
[EventType "swiss"]
[EventCountry "TUR"]
[SourceTitle "playchess.com"]
[Source "ChessBase"]
[SourceQuality "1"]
[TimeControl "5400+30"]

1. e4 {[%emt 0:01:00]} c5 {[%emt 0:01:00]} 2. Nf3 {[%emt 0:00:30]} g6 {[%emt 0:00:30]} 3. d4 {[%emt 0:00:30]} cxd4 {[%emt 0:00:00]} 4. Nxd4 {[%emt 0:00:00]} Nc6 {[%emt 0:00:00]} 5. c4 {[%emt 0:00:00]} Nf6 {[%emt 0:00:30]} 6. Nc3 {[%emt 0:00:30]} d6 {[%emt 0:00:00]} 7. Be2 {[%emt 0:00:00]} Nxd4 {[%emt 0:00:00]} 8. Qxd4 {[%emt 0:00:00]} Bg7 {[%emt 0:00:00]} 9. O-O {[%emt 0:00:00]} O-O {[%emt 0:00:00]} 10. Qd3 {[%emt 0:00:00]} a5 {[%emt 0:00:00]} 11. Be3 {[%emt 0:01:30]} Bd7 {[%emt 0:05:00]} 12. Bd4 {[%emt 0:06:30]} Bc6 {[%emt 0:00:30]} 13. Rfe1 {[%emt 0:01:30]} Nd7 {[%emt 0:01:30]} 14. Bxg7 {[%emt 0:00:30]} Kxg7 {[%emt 0:00:30]} 15. Bf1 {[%emt 0:00:30]} Qb6 {[%emt 0:02:30]} 16. b3 {[%emt 0:05:30]} Rfe8 {[%emt 0:17:30]} 17. Nd5 {[%emt 0:05:30]} Bxd5 {[%emt 0:00:30]} 18. exd5 {[%emt 0:00:30]} Ne5 {[%emt 0:22:30]} 19. Qc3 {[%emt 0:05:30]} Qb4 {[%emt 0:06:30]} 20. Qd4 {[%emt 0:02:30]} Kg8 {[%emt 0:01:30]} 21. Re3 {[%emt 0:03:30]} b6 {[%emt 0:04:30]} 22. a3 {[%emt 0:04:30]} Qc5 {[%emt 0:00:30]} 23. Qd2 {[%emt 0:01:30]} Qc7 {[%emt 0:05:30]} 24. Re4 {[%emt 0:03:30]} Qc8 {[%emt 0:03:30]} 25. Rae1 {[%emt 0:02:30]} Qf5 {[%emt 0:10:56]} 26. h3 {[%emt 0:09:30]} Qf6 {[%emt 0:01:08]} 27. Qd4 {[%emt 0:02:30]} Qg5 {[%emt 0:05:17]} 28. R4e3 {[%emt 0:03:30]} Qf6 {[%emt 0:01:11]} 29. Re4 {[%emt 0:00:30]} Qg5 {[%emt 0:00:28]} 30. Kh1 {[%emt 0:01:30]} Nd7 {[%emt 0:01:04]} 31. h4 {[%emt 0:01:30]} Qf6 {[%emt 0:05:41]} 32. Qxf6 {[%emt 0:02:30]} Nxf6 {[%emt 0:00:30]} 33. Rxe7 {[%emt 0:00:30]} Kf8 {[%emt 0:00:00]} 34. Rxe8+ {[%emt 0:00:30]} Rxe8 {[%emt 0:06:39]} 35. Rxe8+ {[%emt 0:00:30]} Kxe8 {[%emt 0:00:00]} 36. Bd3 {[%emt 0:00:30]} Nd7 {[%emt 0:00:00]} 37. Kg1 {[%emt 0:00:30]} Ne5 {[%emt 0:00:17]} 38. Be2 {[%emt 0:00:30]} Ke7 {[%emt 0:00:32]} 39. f4 {[%emt 0:04:30]} Nd7 {[%emt 0:00:10]} 40. Bd3 {[%emt 0:00:30]} Nc5 {[%emt 0:01:34]} 41. Bc2 {[%emt 0:00:30]} f5 {[%emt 0:00:00]} 42. Kf2 {[%emt 0:00:30]} Kf6 {[%emt 0:00:00]} 43. Ke3 {[%emt 0:00:00]} h5 {[%emt 0:01:20]} 44. Kd4 {[%emt 0:00:00]} Na6 {[%emt 0:00:01]} 45. Kc3 {[%emt 0:00:30]} Ke7 {[%emt 0:00:52]} 46. b4 {[%emt 0:00:30]} axb4+ {[%emt 0:00:49]} 47. axb4 {[%emt 0:00:00]} Kd8 {[%emt 0:00:11]} 48. Ba4 {[%emt 0:00:00]} Ke7 {[%emt 0:00:36]} 49. Bb5 {[%emt 0:01:30]} Nc7 {[%emt 0:00:30]} 50. Bc6 {[%emt 0:00:00]} Na6 {[%emt 0:01:00]} 51. Bb7 {[%emt 0:00:00]} Nc7 {[%emt 0:00:00]} 52. Kd4 {[%emt 0:00:30]} Ne8 {[%emt 0:00:00]} 53. Bc6 {[%emt 0:01:30]} Nf6 {[%emt 0:00:00]} 54. Ba4 {[%emt 0:03:30]} Ne4 {[%emt 0:00:58]} 55. Bc2 {[%emt 0:00:00]} Nf6 {[%emt 0:00:33]} 56. Kc3 {[%emt 0:08:00]} Ng4 {[%emt 0:00:35]} 57. Bd1 {[%emt 0:01:30]} Nf6 {[%emt 0:00:05]} 58. Bf3 {[%emt 0:00:00]} Ne8 {[%emt 0:01:08]} 59. Kd4 {[%emt 0:03:00]} Nf6 {[%emt 0:00:37]} 60. Bd1 {[%emt 0:01:45]} Ne8 {[%emt 0:00:35]} 61. Ba4 {[%emt 0:01:56]} Nf6 {[%emt 0:00:15]} 62. c5 {[%emt 0:05:18]} bxc5+ {[%emt 0:00:38]} 63. bxc5 {[%emt 0:00:30]} dxc5+ {[%emt 0:00:30]} 64. Kxc5 {[%emt 0:00:00]} Ne4+ {[%emt 0:00:00]} 65. Kc6 {[%emt 0:00:07]} Nd6 {[%emt 0:00:00]} 66. Kc7 {[%emt 0:00:00]} Ne4 {[%emt 0:00:00]} 67. Bd7 {[%emt 0:00:30]} Nd6 {[%emt 0:01:28]} 68. Be6 {[%emt 0:00:51]} Nb5+ {[%emt 0:01:18]} 69. Kb6 {[%emt 0:00:52]} Nd4 {[%emt 0:00:13]} 70. Bg8 {[%emt 0:03:51]} Kd6 {[%emt 0:00:12]} 71. Bf7 {[%emt 0:04:11]} Ne2 {[%emt 0:00:08]} 72. Bxg6 {[%emt 0:00:28]} Nxf4 {[%emt 0:00:35]} 73. Bxf5 {[%emt 0:00:30]} Nxg2 {[%emt 0:00:30]} 74. Bg6 {[%emt 0:00:00]} Nxh4 {[%emt 0:00:00]} 75. Bxh5 {[%emt 0:00:13]} Kxd5 {[%emt 0:00:00]} 1/2-1/2

[Event "Turkish Cup 2024"]
[Site "Denizli"]
[Date "2024.08.05"]
[Round "10"]
[White "Akbas, Kaan"]
[Black "Seker, Cinar"]
[Result "1/2-1/2"]
[ECO "D02"]
[WhiteElo "1990"]
[BlackElo "1815"]
[Annotator "NA RC"]
[PlyCount "93"]
[EventDate "2024.08.01"]
[EventType "swiss"]
[EventCountry "TUR"]
[SourceTitle "playchess.com"]
[Source "ChessBase"]
[SourceQuality "1"]
[TimeControl "5400+30"]

1. d4 {[%emt 0:02:00]} d5 {[%emt 0:01:00]} 2. Nf3 {[%emt 0:00:30]} Nf6 {[%emt 0:00:00]} 3. Bf4 {[%emt 0:00:30]} Bf5 {[%emt 0:00:00]} 4. e3 {[%emt 0:00:30]} c6 {[%emt 0:01:30]} 5. Nbd2 {[%emt 0:01:30]} e6 {[%emt 0:01:30]} 6. Bd3 {[%emt 0:00:30]} Nh5 {[%emt 0:03:30]} 7. Bg5 {[%emt 0:09:30]} Be7 {[%emt 0:00:30]} 8. h4 {[%emt 0:00:30]} f6 {[%emt 0:04:30]} 9. Ne5 {[%emt 0:10:30]} g6 {[%emt 0:04:30]} 10. g4 {[%emt 0:01:30]} fxe5 {[%emt 0:03:30]} 11. gxf5 {[%emt 0:04:30]} exf5 {[%emt 0:00:30]} 12. dxe5 {[%emt 0:04:30]} Bxg5 {[%emt 0:02:30]} 13. hxg5 {[%emt 0:00:30]} Ng7 {[%emt 0:02:30]} 14. f4 {[%emt 0:08:30]} Ne6 {[%emt 0:00:30]} 15. Bxf5 {[%emt 0:05:30]} gxf5 {[%emt 0:01:30]} 16. Qh5+ {[%emt 0:00:00]} Kd7 {[%emt 0:00:30]} 17. Qf7+ {[%emt 0:03:00]} Qe7 {[%emt 0:00:30]} 18. Qxf5 {[%emt 0:00:30]} Na6 {[%emt 0:00:00]} 19. Rh6 {[%emt 0:00:30]} Raf8 {[%emt 0:06:00]} 20. Qg4 {[%emt 0:02:30]} Nac7 {[%emt 0:00:30]} 21. O-O-O {[%emt 0:04:30]} Kc8 {[%emt 0:00:30]} 22. Rdh1 {[%emt 0:00:30]} Rfg8 {[%emt 0:05:30]} 23. g6 {[%emt 0:00:30]} Qg7 {[%emt 0:00:30]} 24. f5 {[%emt 0:01:30]} hxg6 {[%emt 0:00:30]} 25. Rxh8 {[%emt 0:08:30]} Rxh8 {[%emt 0:00:30]} 26. Rxh8+ {[%emt 0:00:30]} Qxh8 {[%emt 0:00:30]} 27. fxe6 {[%emt 0:00:30]} Qh1+ {[%emt 0:00:30]} 28. Qd1 {[%emt 0:00:00]} Qxd1+ {[%emt 0:00:00]} 29. Kxd1 {[%emt 0:00:00]} Nxe6 {[%emt 0:00:00]} 30. Ke2 {[%emt 0:03:30]} Kd7 {[%emt 0:00:30]} 31. Kf3 {[%emt 0:00:30]} Ng5+ {[%emt 0:02:30]} 32. Kf4 {[%emt 0:00:30]} Nf7 {[%emt 0:00:00]} 33. Nb3 {[%emt 0:00:30]} b6 {[%emt 0:06:00]} 34. Nd4 {[%emt 0:01:30]} Nd8 {[%emt 0:01:30]} 35. Kg5 {[%emt 0:00:30]} c5 {[%emt 0:00:30]} 36. Nb5 {[%emt 0:07:36]} Ke6 {[%emt 0:02:30]} 37. Nxa7 {[%emt 0:01:23]} Nf7+ {[%emt 0:00:30]} 38. Kf4 {[%emt 0:00:40]} g5+ {[%emt 0:00:30]} 39. Kg4 {[%emt 0:02:25]} Nxe5+ {[%emt 0:00:30]} 40. Kxg5 {[%emt 0:00:00]} Nc4 {[%emt 0:00:30]} 41. Kf4 {[%emt 0:01:16]} Nxb2 {[%emt 0:00:00]} 42. Nb5 {[%emt 0:02:25]} Nc4 {[%emt 0:00:00]} 43. Kf3 {[%emt 0:01:48]} Kd7 {[%emt 0:00:30]} 44. Ke2 {[%emt 0:00:40]} Kc6 {[%emt 0:00:30]} 45. Na7+ {[%emt 0:01:59]} Kb7 {[%emt 0:00:30]} 46. Nb5 {[%emt 0:00:30]} Kc6 {[%emt 0:00:00]} 47. Na7+ {[%emt 0:01:31]} 1/2-1/2